bitfinex-derivatives/quotes_SOLF0:USTF0_20260211
["timestamp","ask_amount","ask_price","bid_price","bid_amount"]
[1770836309587,11.9039236,79.719,79.68,0.07928728]
[1770836310089,11.9039236,79.739,79.68,11.66917491]
[1770836310295,11.9039236,79.739,79.694,11.3004]
[1770836310685,11.9039236,79.739,79.68,11.66917491]
[1770836311689,11.9039236,79.737,79.68,11.66917491]
[1770836311998,11.9039236,79.737,79.666,100.14]
[1770836312796,11.9039236,79.716,79.669,11.3039]
[1770836312983,11.9039236,79.716,79.669,22.97307491]
[1770836313388,11.2976,79.715,79.669,22.97307491]
[1770836314190,23.2015236,79.715,79.669,22.97307491]
[1770836314890,11.9039236,79.714,79.684,0.08037977]
[1770836316788,11.2964,79.724,79.684,0.08037977]
[1770836316988,11.9039236,79.728,79.684,0.08037977]
[1770836317297,11.9039236,79.728,79.682,11.66917491]
[1770836317495,11.9039236,79.712,79.652,129.5]
[1770836317696,11.9039236,79.712,79.653,11.66917491]
[1770836318092,10.78179345,79.72,79.657,11.3057]
[1770836318093,11.9039236,79.708,79.657,11.3057]
[1770836319790,11.9039236,79.739,79.658,11.66917491]
[1770836320792,11.2964,79.724,79.677,11.3029]
[1770836321102,11.2964,79.724,79.678,11.66917491]
[1770836321896,11.2972,79.718,79.678,11.66917491]
[1770836324602,11.9039236,79.727,79.683,22.97117491]
[1770836325096,11.9039236,79.724,79.683,11.66917491]
[1770836325296,11.9039236,79.724,79.664,11.66917491]
[1770836326099,10.79506194,79.73,79.67,11.3038]
[1770836326100,11.9039236,79.708,79.67,11.3038]
[1770836326600,11.9039236,79.708,79.662,137.56]
[1770836326803,11.9039236,79.708,79.662,149.22917491]
[1770836327101,11.9039236,79.706,79.663,11.3049]
[1770836327495,11.9039236,79.706,79.648,11.66917491]
[1770836328500,11.9039236,79.703,79.669,0.07930178]
[1770836329603,11.9039236,79.719,79.67,11.66917491]
[1770836330024,11.9039236,79.735,79.678,11.66917491]
[1770836330510,11.9039236,79.735,79.699,0.08043392]
[1770836331702,11.49610747,79.732,79.699,0.08043392]
[1770836332303,11.49610747,79.732,79.683,11.3019]
[1770836332806,11.49610747,79.727,79.683,11.3019]
[1770836333000,11.49610747,79.727,79.689,11.3011]
[1770836333303,11.49610747,79.749,79.678,11.66917491]
[1770836334001,11.49610747,79.749,79.695,11.3003]
[1770836334201,11.49610747,79.749,79.695,11.72651357]
[1770836334801,11.49610747,79.746,79.704,11.299]
[1770836335299,11.49610747,79.746,79.714,0.08002123]
[1770836338008,11.49610747,79.776,79.714,11.8065348]
[1770836338603,11.49610747,79.776,79.714,11.72651357]
[1770836338906,11.49610747,79.773,79.728,11.2956]
[1770836340810,11.2897,79.771,79.728,11.2956]
[1770836341415,11.49610747,79.788,79.727,11.72651357]
[1770836342300,11.49610747,79.788,79.747,11.2928]
[1770836344011,11.49610747,79.788,79.74,23.02041357]
[1770836344715,11.2875,79.786,79.74,23.02041357]
[1770836345415,11.2875,79.786,79.747,11.293]
[1770836346006,11.49610747,79.785,79.74,11.72651357]
[1770836346210,11.2879,79.783,79.74,11.72651357]
[1770836347709,11.49610747,79.782,79.741,11.2938]
[1770836349815,11.49610747,79.782,79.74,11.72651357]
[1770836350219,11.2844,79.808,79.751,11.72651357]
[1770836350712,11.49610747,79.799,79.751,11.72651357]
[1770836351019,11.49610747,79.799,79.738,11.72651357]
[1770836351510,11.49610747,79.791,79.74,11.294]
[1770836352509,11.49610747,79.791,79.74,23.02051357]
[1770836353918,11.49610747,79.791,79.741,11.72651357]
[1770836354311,11.49610747,79.791,79.742,11.2936]
[1770836354914,11.49610747,79.789,79.742,11.2936]
[1770836355920,11.49610747,79.789,79.75,4.0236556]
[1770836356716,11.49610747,79.789,79.762,0.07976893]
[1770836362616,11.52880008,79.802,79.762,0.07976893]
[1770836363221,11.52880008,79.802,79.759,11.2912]
[1770836363423,11.2844,79.808,79.768,12.131504]
[1770836363627,11.52880008,79.815,79.771,12.131504]
[1770836364227,11.52880008,79.809,79.773,11.2892]
[1770836364623,22.5576,79.848,79.764,11.2905]
[1770836364624,4.0236556,79.8,79.764,11.2905]
[1770836365016,15.55245568,79.8,79.764,11.2905]
[1770836365217,11.52880008,79.799,79.764,11.2905]
[1770836365427,11.52880008,79.799,79.774,0.0801646]
[1770836366021,11.52880008,79.799,79.754,11.2919]
[1770836366731,11.52880008,79.796,79.754,11.2919]
[1770836370331,22.5626,79.83,79.754,11.2919]
[1770836370332,11.94673429,79.789,79.754,11.2919]
[1770836374035,11.94673429,79.788,79.748,23.424304]
[1770836374242,11.94673429,79.788,79.748,12.131504]
[1770836375836,11.94673429,79.788,79.754,11.292]
[1770836378237,11.94673429,79.779,79.747,11.2929]
[1770836378529,4.0236556,79.79,79.742,12.61795259]
[1770836378734,11.94673429,79.789,79.742,12.61795259]
[1770836379831,11.94673429,79.789,79.752,11.2921]
[1770836380050,11.6120299,79.825,79.741,114.88]
[1770836380051,4.0236556,79.8,79.753,12.61795259]
[1770836380232,15.97038989,79.8,79.753,12.61795259]
[1770836380632,11.94673429,79.798,79.757,11.2915]
[1770836381228,11.2862,79.795,79.76,11.291]
[1770836382440,11.6120299,79.824,79.761,12.61795259]
[1770836382641,0.07963961,79.785,79.751,12.61795259]
[1770836384436,0.07963961,79.785,79.752,11.2921]
[1770836384642,12.0263739,79.785,79.752,11.2921]
[1770836388246,11.94673429,79.783,79.743,12.61795259]
[1770836389047,4.02401589,79.79,79.743,12.61795259]
[1770836389249,11.94673429,79.794,79.757,12.61795259]
[1770836390146,0.07925838,79.783,79.757,12.61795259]
[1770836400249,4.02401589,79.77,79.725,12.29578584]
[1770836400549,12.44942115,79.775,79.695,22.6005]
[1770836400550,12.44942115,79.779,79.731,12.29578584]
[1770836401058,11.73061172,79.8,79.713,14.92098526]
[1770836401059,15.75462761,79.8,79.75,4.02401589]
[1770836401258,12.44942115,79.8,79.751,12.29578584]
[1770836401454,12.44942115,79.809,79.761,12.29578584]
[1770836401854,12.44942115,79.807,79.761,12.29578584]
[1770836402154,4.02401589,79.78,79.731,12.29578584]
[1770836402355,12.44942115,79.779,79.731,12.29578584]
[1770836402656,12.44942115,79.779,79.734,12.29578584]
[1770836403256,12.44942115,79.779,79.738,11.2942]
[1770836403453,12.44942115,79.779,79.741,12.29578584]
[1770836403660,12.44942115,79.79,79.741,12.29578584]
[1770836403855,4.02401589,79.81,79.761,12.29578584]
[1770836404152,4.02401589,79.82,79.771,12.29578584]
[1770836404356,12.44942115,79.819,79.771,12.29578584]
[1770836404759,12.44942115,79.819,79.773,12.29578584]
[1770836404949,4.02401589,79.82,79.773,12.29578584]
[1770836405159,12.44942115,79.826,79.781,12.29578584]
[1770836406550,12.44942115,79.826,79.788,12.29578584]
[1770836407662,11.282,79.825,79.788,12.29578584]
[1770836407858,23.73142115,79.825,79.788,12.29578584]
[1770836408059,16.47343704,79.82,79.784,11.2877]
[1770836408362,12.44942115,79.829,79.791,11.2867]
[1770836409760,4.02401589,79.84,79.798,12.29578584]
[1770836410070,4.02401589,79.85,79.801,12.29578584]
[1770836410263,12.44942115,79.853,79.808,12.29578584]
[1770836411162,12.44942115,79.853,79.815,11.2833]
[1770836411163,4.02401589,79.85,79.815,11.2833]
[1770836411563,12.44942115,79.853,79.815,11.2833]
[1770836412361,12.44942115,79.849,79.808,12.29578584]
[1770836412860,16.47343704,79.86,79.812,12.29578584]
[1770836413557,12.44942115,79.859,79.812,12.29578584]
[1770836414666,11.2774,79.857,79.812,12.29578584]
[1770836415465,23.72682115,79.857,79.812,12.29578584]
[1770836415663,11.2759,79.868,79.821,12.29578584]
[1770836415866,12.44942115,79.867,79.811,12.29578584]
[1770836416369,11.2763,79.865,79.814,12.29578584]
[1770836416562,4.02401589,79.85,79.8,16.31980173]
[1770836416758,12.44942115,79.859,79.81,4.02401589]
[1770836416956,12.44942115,79.859,79.811,12.29578584]
[1770836418471,12.44942115,79.859,79.812,12.29578584]
[1770836419169,12.44942115,79.849,79.802,11.2852]
[1770836419369,12.44942115,79.849,79.803,12.29578584]
[1770836420472,12.44942115,79.849,79.805,12.22774612]
[1770836421362,12.44942115,79.849,79.807,12.22774612]
[1770836422271,12.44942115,79.849,79.81,12.22774612]
[1770836422865,11.2773,79.858,79.81,12.22774612]
[1770836423172,4.02401589,79.86,79.821,12.22774612]
[1770836423173,15.68119048,79.86,79.821,12.22774612]
[1770836423573,11.65717459,79.86,79.821,12.22774612]
[1770836423773,11.65717459,79.86,79.822,11.2824]
[1770836424371,11.65717459,79.868,79.825,12.22774612]
[1770836424876,4.02401589,79.86,79.825,12.22774612]
[1770836425268,15.68119048,79.86,79.825,12.22774612]
[1770836425472,11.65717459,79.839,79.785,12.22774612]
[1770836425668,4.02401589,79.82,79.785,12.22774612]
[1770836426271,11.65717459,79.819,79.785,12.22774612]
[1770836426472,11.65717459,79.819,79.689,175.7967]
[1770836426473,4.02401589,79.79,79.741,12.22774612]
[1770836426679,11.65717459,79.8,79.741,12.22774612]
[1770836426877,15.68119048,79.8,79.741,12.22774612]
[1770836427586,4.02401589,79.82,79.771,11.64075468]
[1770836427790,4.02401589,79.84,79.79,4.02401589]
[1770836427987,12.38072634,79.845,79.791,11.64075468]
[1770836428290,4.02401589,79.84,79.791,11.64075468]
[1770836429882,4.02401589,79.84,79.798,11.2857]
[1770836430183,4.02401589,79.85,79.801,11.64075468]
[1770836430487,4.02401589,79.84,79.801,11.64075468]
[1770836430692,12.38072634,79.839,79.781,11.64075468]
[1770836430890,12.38072634,79.839,79.794,11.2863]
[1770836433188,4.02401589,79.84,79.798,11.64075468]
[1770836433393,4.02401589,79.85,79.801,11.64075468]
[1770836433996,99.96,79.886,79.801,11.64075468]
[1770836433997,4.02401589,79.84,79.801,11.64075468]
[1770836434199,4.02401589,79.83,79.785,11.64075468]
[1770836434392,4.02401589,79.82,79.778,111.60075468]
[1770836434593,12.38072634,79.825,79.779,11.64075468]
[1770836435794,12.38072634,79.825,79.788,11.2871]
[1770836437694,12.38072634,79.825,79.788,22.92785468]
[1770836437895,12.38072634,79.829,79.79,11.2868]
[1770836438398,12.38072634,79.829,79.791,11.64075468]
[1770836439695,12.38072634,79.829,79.794,11.2863]
[1770836441192,4.02401589,79.85,79.802,11.64075468]
[1770836441400,12.38072634,79.854,79.802,11.64075468]
[1770836441601,12.38072634,79.849,79.802,11.64075468]
[1770836441804,12.38072634,79.829,79.788,11.64075468]
[1770836442006,12.38072634,79.799,79.747,11.64075468]
[1770836442202,4.02401589,79.79,79.747,11.64075468]
[1770836442408,4.02401589,79.78,79.75,11.2925]
[1770836442607,12.38072634,79.779,79.733,11.64075468]
[1770836442803,16.40474223,79.76,79.718,11.64075468]
[1770836443000,4.02401589,79.75,79.718,11.64075468]
[1770836443201,4.02401589,79.75,79.711,11.2979]
[1770836443596,11.2902,79.767,79.719,11.64075468]
[1770836443799,4.02401589,79.75,79.719,11.64075468]
[1770836444007,12.38072634,79.773,79.736,11.2945]
[1770836444208,4.02401589,79.77,79.721,11.64075468]
[1770836444411,22.5643,79.824,79.721,11.64075468]
[1770836444412,4.02401589,79.76,79.721,11.64075468]
[1770836445901,99.98,79.805,79.698,11.64075468]
[1770836445902,12.38072634,79.769,79.698,11.64075468]
[1770836446098,4.02401589,79.78,79.73,4.02401589]
[1770836446304,4.02401589,79.78,79.732,11.64075468]
[1770836446901,4.02553908,79.77,79.725,11.296]
[1770836447099,4.02553908,79.76,79.725,11.296]
[1770836447610,12.38072634,79.777,79.73,11.2953]
[1770836447611,4.02553908,79.77,79.73,11.2953]
[1770836449913,0.07976291,79.758,79.73,11.2953]
[1770836450906,0.07976291,79.758,79.738,11.2942]
[1770836451112,12.38072634,79.777,79.738,11.2942]
[1770836451310,12.38072634,79.777,79.731,12.42570976]
[1770836451506,4.02553908,79.76,79.72,12.42570976]
[1770836451913,12.25021775,79.769,79.72,12.42570976]
[1770836452608,12.25021775,79.769,79.723,23.72200976]
[1770836453316,12.25021775,79.759,79.712,11.2979]
[1770836453506,4.02553908,79.75,79.712,11.2979]
[1770836453701,4.02553908,79.75,79.712,12.42570976]
[1770836454414,4.02553908,79.76,79.72,12.42570976]
[1770836455116,4.02553908,79.76,79.732,0.08027851]
[1770836455809,4.02553908,79.77,79.732,0.08027851]
[1770836456014,4.02553908,79.77,79.733,12.42570976]
[1770836456415,4.02553908,79.78,79.734,12.42570976]
[1770836457310,4.02553908,79.78,79.741,11.2938]
[1770836457609,12.25021775,79.799,79.734,12.42570976]
[1770836457812,4.02553908,79.79,79.749,0.08029778]
[1770836458207,4.02553908,79.79,79.762,11.2907]
[1770836458711,4.02553908,79.77,79.711,12.42570976]
[1770836459808,4.02553908,79.77,79.733,11.2949]
[1770836460003,11.2891,79.775,79.733,11.2949]
[1770836460004,4.02553908,79.76,79.733,11.2949]
[1770836460207,4.02553908,79.76,79.711,12.42570976]
[1770836460412,4.02553908,79.74,79.698,12.42570976]
[1770836460606,12.25021775,79.768,79.698,12.42570976]
[1770836460917,4.02553908,79.78,79.721,12.42570976]
[1770836461112,12.25021775,79.784,79.731,12.42570976]
[1770836461307,12.25021775,79.784,79.756,11.2917]
[1770836461514,15.64366593,79.861,79.7,175.7725]
[1770836461515,12.25021775,79.813,79.761,12.42570976]
[1770836461712,4.02553908,79.83,79.781,12.42570976]
[1770836461920,4.02553908,79.8,79.764,11.2905]
[1770836462419,4.02553908,79.8,79.751,12.42570976]
[1770836462918,12.25021775,79.818,79.774,0.07933874]
[1770836464109,10.77273513,79.81,79.774,0.07933874]
[1770836464309,12.25021775,79.809,79.742,12.42570976]
[1770836464509,12.25021775,79.789,79.742,12.42570976]
[1770836465912,12.25021775,79.789,79.726,12.42570976]
[1770836466313,11.2859,79.797,79.737,12.42570976]
[1770836467419,12.25021775,79.803,79.742,12.42570976]
[1770836468815,12.25021775,79.803,79.728,12.42570976]
[1770836468816,10.77273513,79.79,79.728,12.42570976]
[1770836469018,12.25021775,79.789,79.728,12.42570976]
[1770836469818,12.25021775,79.784,79.735,11.2946]
[1770836470818,12.25021775,79.784,79.735,23.72030976]
[1770836471014,0.07982867,79.767,79.735,23.72030976]
[1770836471811,0.07982867,79.767,79.74,11.2938]
[1770836473009,0.07982867,79.767,79.725,11.2961]
[1770836473010,12.33004642,79.767,79.725,11.2961]
[1770836473215,12.33004642,79.767,79.723,12.42570976]
[1770836474417,12.33004642,79.767,79.709,12.42570976]
[1770836474617,0.07982867,79.767,79.709,12.42570976]
[1770836474824,0.07982867,79.767,79.701,22.5989]
[1770836474825,0.07982867,79.767,79.743,23.71920976]
[1770836475015,12.25021775,79.79,79.743,23.71920976]
[1770836475820,12.25021775,79.79,79.749,11.2926]
[1770836476915,12.25021775,79.787,79.74,11.2939]
[1770836477215,12.25021775,79.787,79.729,12.42570976]
[1770836478518,12.25021775,79.784,79.729,12.42570976]
[1770836480127,12.25021775,79.779,79.716,12.42570976]
[1770836480425,12.25021775,79.779,79.719,11.58316436]
[1770836481223,11.2893,79.774,79.729,11.58316436]
[1770836482324,22.84511872,79.774,79.729,11.58316436]
[1770836483831,22.84511872,79.774,79.731,11.2952]
[1770836484619,11.55581872,79.774,79.729,11.58316436]
[1770836485816,11.55581872,79.774,79.73,22.87846436]
[1770836486023,11.55581872,79.774,79.731,11.58316436]
[1770836486421,11.55581872,79.788,79.747,11.58316436]
[1770836487729,11.55581872,79.788,79.754,11.2919]
[1770836490421,4.02530952,79.77,79.737,11.2943]
[1770836490625,11.67745516,79.779,79.73,12.5389878]
[1770836491024,11.2886,79.778,79.743,11.2935]
[1770836491228,11.2886,79.778,79.73,12.5389878]
[1770836491425,0.07943674,79.762,79.73,12.5389878]
[1770836491829,0.07943674,79.762,79.731,12.5389878]
[1770836492025,11.2873,79.787,79.744,12.5389878]
[1770836493128,22.96475516,79.787,79.744,12.5389878]
[1770836495117,11.288,79.783,79.744,12.5389878]
[1770836495322,11.288,79.783,79.758,0.07991943]
[1770836495723,11.2887,79.778,79.758,0.07991943]
[1770836495931,11.2887,79.778,79.72,4.02530952]
[1770836495932,11.67745516,79.777,79.732,12.5389878]
[1770836496129,4.02530952,79.77,79.732,12.5389878]
[1770836496330,11.67745516,79.769,79.732,12.5389878]
[1770836496533,4.02530952,79.76,79.717,12.5389878]
[1770836496929,15.70276468,79.76,79.717,12.5389878]
[1770836498029,11.67745516,79.759,79.704,12.5389878]
[1770836498234,4.02530952,79.74,79.704,12.5389878]
[1770836498733,11.67745516,79.746,79.704,12.5389878]
[1770836500032,11.67745516,79.746,79.706,11.2988]
[1770836500427,0.07902433,79.733,79.707,12.5389878]
[1770836500836,0.07902433,79.733,79.709,12.5389878]
[1770836501134,11.67745516,79.746,79.709,12.5389878]
[1770836501835,4.02530952,79.77,79.721,12.5389878]
[1770836502132,4.02530952,79.78,79.731,12.5389878]
[1770836502322,4.02530952,79.77,79.732,11.295]
[1770836502528,11.67745516,79.779,79.733,12.5389878]
[1770836503832,11.67745516,79.779,79.748,0.07902328]
[1770836505134,11.67745516,79.759,79.714,167.0189878]
[1770836505322,4.02530952,79.77,79.721,12.5389878]
[1770836505526,11.2886,79.778,79.731,12.5389878]
[1770836505723,11.2886,79.778,79.714,154.48]
[1770836505724,4.02530952,79.76,79.727,11.2957]
[1770836506534,11.67745516,79.769,79.727,11.2957]
[1770836506831,11.67745516,79.769,79.727,23.8346878]
[1770836507031,0.07979889,79.751,79.727,23.8346878]
[1770836507830,0.07979889,79.751,79.733,11.2949]
[1770836508333,0.07979889,79.751,79.714,154.48]
[1770836508334,11.75725405,79.751,79.714,154.48]
[1770836508539,11.75725405,79.751,79.7,12.5389878]
[1770836509133,11.67745516,79.751,79.7,12.5389878]
[1770836509640,11.67745516,79.751,79.714,11.2976]
[1770836509935,11.67745516,79.746,79.707,11.2986]
[1770836510236,11.67745516,79.769,79.707,12.5389878]
[1770836511629,11.67745516,79.769,79.717,11.2971]
[1770836511630,11.2911,79.761,79.717,11.2971]
[1770836511830,12.39893532,79.76,79.717,11.2971]
[1770836513832,12.39893532,79.757,79.717,11.2971]
[1770836514844,12.39893532,79.755,79.717,11.2971]
[1770836515540,11.292,79.754,79.717,11.2971]
[1770836515732,12.39893532,79.755,79.707,12.5389878]
[1770836515733,12.39893532,79.753,79.707,12.5389878]
[1770836516141,11.2923,79.752,79.707,12.5389878]
[1770836516339,12.39893532,79.749,79.695,11.9781309]
[1770836517635,12.39893532,79.74,79.679,11.9781309]
[1770836517946,12.39893532,79.709,79.648,11.9781309]
[1770836518141,12.39893532,79.702,79.648,11.9781309]
[1770836518539,12.39893532,79.702,79.671,0.07933759]
[1770836518939,12.39893532,79.702,79.648,11.9781309]
[1770836519741,12.39893532,79.716,79.648,11.9781309]
[1770836520243,11.3005,79.694,79.648,11.9781309]
[1770836520443,0.0802437,79.69,79.648,11.9781309]
[1770836520945,12.39893532,79.716,79.648,11.9781309]
[1770836521141,12.39893532,79.716,79.65,11.9781309]
[1770836521350,12.39893532,79.694,79.65,11.9781309]
[1770836521546,12.39893532,79.694,79.634,11.9781309]
[1770836522538,12.39893532,79.68,79.634,11.9781309]
[1770836522751,12.39893532,79.68,79.608,11.9781309]
[1770836522948,12.39893532,79.68,79.619,11.9781309]
[1770836524650,12.39893532,79.67,79.619,11.9781309]
[1770836526549,12.39893532,79.67,79.609,14.16290092]
[1770836526847,12.39893532,79.67,79.609,11.9781309]
[1770836527056,12.39893532,79.669,79.609,11.9781309]
[1770836527751,12.39893532,79.661,79.609,11.9781309]
[1770836528247,12.39893532,79.661,79.594,11.9781309]
[1770836528450,12.39893532,79.663,79.59,11.9781309]
[1770836528646,12.39893532,79.663,79.575,100.12]
[1770836528647,12.39893532,79.689,79.601,11.9781309]
[1770836529043,23.70123532,79.682,79.622,11.9781309]
[1770836529247,10.7840408,79.69,79.622,11.9781309]
[1770836529248,12.39893532,79.681,79.622,11.9781309]
[1770836530053,12.39893532,79.676,79.622,11.9781309]
[1770836531158,12.39893532,79.676,79.623,11.3105]
[1770836531349,12.39893532,79.676,79.6,10.7840408]
[1770836531350,12.39893532,79.676,79.624,11.9781309]
[1770836532251,12.39893532,79.676,79.642,0.08040398]
[1770836532647,12.39893532,79.69,79.642,12.05853488]
[1770836532847,12.39893532,79.689,79.609,11.9781309]
[1770836534356,12.39893532,79.665,79.618,11.3112]
[1770836535853,11.3048,79.664,79.618,11.3112]
[1770836536053,12.39893532,79.663,79.618,11.3112]
[1770836536560,12.39893532,79.689,79.628,11.9781309]
[1770836537053,12.39893532,79.689,79.601,11.9781309]
[1770836537759,12.39893532,79.672,79.622,11.3107]
[1770836538665,12.39893532,79.683,79.63,11.9781309]
[1770836539161,11.3035,79.673,79.633,11.3091]
[1770836539463,12.39893532,79.672,79.63,11.9781309]
[1770836540857,11.3044,79.667,79.63,11.9781309]
[1770836541555,12.39893532,79.672,79.632,11.3092]
[1770836541763,12.39893532,79.672,79.632,23.81431608]
[1770836541964,11.3031,79.676,79.633,12.50511608]
[1770836542362,11.3021,79.683,79.636,12.50511608]
[1770836542562,11.81025239,79.685,79.636,12.50511608]
[1770836543162,11.3019,79.684,79.641,23.81301608]
[1770836543365,11.3019,79.684,79.642,12.50511608]
[1770836543967,11.3027,79.679,79.642,12.50511608]
[1770836546671,11.3036,79.673,79.642,12.50511608]
[1770836547871,11.96374707,79.696,79.642,12.50511608]
[1770836548173,11.96374707,79.709,79.651,12.24736982]
[1770836548470,11.96374707,79.722,79.671,12.24736982]
[1770836549466,11.297,79.719,79.68,4.03489776]
[1770836549667,11.297,79.719,79.635,37.66]
[1770836549668,11.96374707,79.738,79.69,4.03489776]
[1770836549966,15.99864483,79.75,79.691,12.24736982]
[1770836550165,11.2936,79.743,79.694,12.24736982]
[1770836550365,4.03489776,79.73,79.684,12.24736982]
[1770836550563,11.96374707,79.739,79.684,12.24736982]
[1770836552667,11.96374707,79.739,79.626,37.66]
[1770836552668,11.96374707,79.755,79.69,12.24736982]
[1770836553263,11.96374707,79.755,79.701,12.24736982]
[1770836554260,11.96374707,79.754,79.69,11.3009]
[1770836554464,11.96374707,79.754,79.653,22.6126]
[1770836554465,11.96374707,79.754,79.691,12.24736982]
[1770836555371,11.2923,79.752,79.693,11.3006]
[1770836555573,11.96374707,79.751,79.694,12.24736982]
[1770836556766,11.96374707,79.751,79.698,12.24736982]
[1770836558465,11.96374707,79.751,79.699,11.2997]
[1770836558665,11.96374707,79.751,79.681,102.8]
[1770836558666,11.96374707,79.768,79.7,12.24736982]
[1770836559274,11.96374707,79.768,79.726,0.079527]
[1770836559571,11.96374707,79.766,79.726,0.079527]
[1770836559767,11.96374707,79.759,79.726,0.079527]
[1770836560268,11.96374707,79.759,79.701,12.24736982]
[1770836560868,11.96374707,79.756,79.71,11.2982]
[1770836561576,11.96374707,79.756,79.725,0.07991271]
[1770836562767,11.2921,79.753,79.725,0.07991271]
[1770836563868,23.25584707,79.753,79.725,0.07991271]
[1770836565576,23.25624707,79.751,79.725,0.07991271]
[1770836567578,11.96374707,79.751,79.725,0.07991271]
[1770836567774,11.96374707,79.765,79.725,0.07991271]
[1770836568368,11.96374707,79.765,79.713,12.24736982]
[1770836568369,11.96374707,79.757,79.713,12.24736982]
[1770836568771,11.96374707,79.757,79.702,11.2993]
[1770836568973,12.04351734,79.743,79.676,12.24736982]
[1770836569280,11.96374707,79.739,79.676,12.24736982]
[1770836569780,11.96374707,79.739,79.622,250.9]
[1770836569781,11.96374707,79.719,79.64,12.24736982]
[1770836569982,11.96374707,79.699,79.626,100.1]
[1770836570183,11.96374707,79.673,79.617,11.3113]
[1770836570977,11.96374707,79.673,79.609,11.3125]
[1770836571185,12.38621802,79.653,79.594,12.31506977]
[1770836571676,12.30602339,79.653,79.597,14.50009357]
[1770836571873,12.30602339,79.653,79.597,12.31506977]
[1770836572782,12.30602339,79.667,79.597,12.31506977]
[1770836574375,12.30602339,79.667,79.599,12.31506977]
[1770836574783,12.30602339,79.667,79.62,11.311]
[1770836575384,12.30602339,79.667,79.598,116.86]
[1770836576187,12.30602339,79.649,79.579,12.31506977]
[1770836576984,12.30602339,79.648,79.579,12.31506977]
[1770836577786,12.30602339,79.643,79.589,11.3154]
[1770836578792,12.30602339,79.64,79.589,11.3154]
[1770836579890,12.30602339,79.638,79.589,11.3154]
[1770836580192,10.78936036,79.65,79.579,12.31506977]
[1770836580193,12.30602339,79.649,79.579,12.31506977]
[1770836580796,12.30602339,79.649,79.599,12.31506977]
[1770836581285,12.30602339,79.649,79.611,11.3121]
[1770836581488,12.30602339,79.649,79.599,12.31506977]
[1770836581982,12.30602339,79.649,79.603,11.3133]
[1770836585795,12.30602339,79.649,79.61,11.3123]
[1770836585990,12.30602339,79.678,79.611,12.31506977]
[1770836586392,12.30602339,79.693,79.632,12.31506977]
[1770836587192,11.3009,79.692,79.643,11.3076]
[1770836587393,23.60692339,79.692,79.643,11.3076]
[1770836587593,12.30602339,79.691,79.643,11.3076]
[1770836588401,12.30602339,79.691,79.659,0.07912532]
[1770836588998,12.30602339,79.691,79.652,11.3063]
[1770836589702,11.3011,79.69,79.646,12.31506977]
[1770836590203,12.30602339,79.665,79.618,11.3112]
[1770836590410,12.30602339,79.665,79.607,12.31506977]
[1770836590999,12.30602339,79.659,79.596,100.18]
[1770836591197,12.30602339,79.659,79.592,12.31506977]
[1770836591595,12.30602339,79.653,79.606,11.3128]
[1770836591798,12.30602339,79.653,79.592,12.31506977]
[1770836592904,10.78936036,79.66,79.614,11.3118]
[1770836593105,12.30602339,79.659,79.614,11.3118]
[1770836594596,12.30602339,79.658,79.606,11.3129]
[1770836595206,23.61232339,79.653,79.612,11.312]
[1770836595606,23.61232339,79.653,79.593,12.31506977]
[1770836595808,12.30602339,79.653,79.604,23.62816977]
[1770836596010,11.3051,79.662,79.605,12.31506977]
[1770836596200,12.30602339,79.662,79.605,12.31506977]
[1770836596704,12.30602339,79.648,79.591,12.31506977]
[1770836597305,12.30602339,79.648,79.597,12.31506977]
[1770836597501,12.30602339,79.659,79.597,12.31506977]
[1770836598500,12.30602339,79.659,79.598,11.3141]
[1770836598804,12.30602339,79.659,79.599,12.31506977]
[1770836599805,12.30602339,79.657,79.6,11.3138]
[1770836600207,12.30602339,79.657,79.601,12.31506977]
[1770836600606,12.30602339,79.657,79.603,11.3134]
[1770836601205,12.30602339,79.657,79.604,12.57700825]
[1770836601406,12.39771772,79.675,79.608,12.57700825]
[1770836601810,11.3038,79.671,79.618,12.57700825]
[1770836602006,23.70151772,79.671,79.618,12.57700825]
[1770836602206,12.39771772,79.67,79.618,12.57700825]
[1770836603612,11.3042,79.668,79.622,11.3106]
[1770836604117,12.39771772,79.67,79.618,12.57700825]
[1770836605111,12.39771772,79.67,79.636,0.07979981]
[1770836605513,12.39771772,79.701,79.659,11.3053]
[1770836605721,12.39771772,79.701,79.65,12.57700825]
[1770836605912,12.39771772,79.718,79.65,12.57700825]
[1770836606623,12.39771772,79.718,79.627,100.2]
[1770836606624,12.39771772,79.718,79.67,11.3038]
[1770836607118,12.39771772,79.718,79.666,12.57700825]
[1770836608823,12.39771772,79.718,79.674,11.3032]
[1770836611721,12.10780355,79.734,79.684,11.3018]
[1770836611914,100.18,79.765,79.674,11.77811752]
[1770836611915,12.10780355,79.729,79.674,11.77811752]
[1770836612114,12.10780355,79.714,79.668,11.3042]
[1770836612515,12.10780355,79.714,79.648,11.77811752]